fUST/lending_fUST_20240501
["ID","MTS","AMOUNT","RATE_DAILY","PERIOD"]
[325072320,1714511450789,-1487.85919912,0.001899,120]
[325072332,1714511450898,613.50512737,0.00020912,2]
[325072336,1714511450929,-262.5,0.0003177,3]
[325072338,1714511450940,-793.85475106,0.0003177,3]
[325072341,1714511450951,-1555.15524894,0.0003177,3]
[325072342,1714511450960,-500.0,0.0003178,2]
[325072344,1714511450970,-500.0,0.0003178,2]
[325072346,1714511450979,-500.0,0.00032054,2]
[325072349,1714511450989,-500.0,0.00032054,2]
[325072351,1714511450998,-500.0,0.00032328,2]
[325072352,1714511451007,-35247.16042328,0.001899,120]
[325072364,1714511451121,-1391.33234202,0.001899,120]
[325072368,1714511451151,1100.33521336,0.00020912,2]
[325072740,1714511455729,880.88365144,0.00020913,2]
[325072743,1714511455747,6609.60284628,0.00020913,2]
[325072823,1714511456567,877.80123469,0.00020913,2]
[325073468,1714511463124,565.05764557,0.00020913,2]
[325074860,1714511478074,194.54734174,0.00020913,2]
[325074955,1714511479071,563.90696285,0.00020913,2]
[325075235,1714511481857,461.59774893,0.00020913,2]
[325075272,1714511482214,1312.48943229,0.00020913,2]
[325075276,1714511482243,939.04672329,0.00020913,2]
[325075762,1714511487377,1879.32925164,0.00020913,2]
[325075768,1714511487422,186.25450795,0.00020913,2]
[325076591,1714511495842,354.44118082,0.00020913,2]
[325076810,1714511497996,212.2534425,0.00020913,2]
[325076813,1714511498015,716.10762919,0.00020913,2]
[325080441,1714511538741,154.78330338,0.00020913,2]
[325080674,1714511541007,1564.25196696,0.00020913,2]
[325080867,1714511542820,235.95222024,0.00020913,2]
[325084913,1714511613606,314.81328207,9.999e-05,2]
[325084914,1714511808660,771.62654857,9.999e-05,2]
[325084942,1714511972639,526.91179477,9.999e-05,2]
[325084946,1714512060325,154.78330338,9.999e-05,2]
[325084949,1714512124887,308.84790387,9.999e-05,2]
[325084950,1714512156561,186.32922869,9.999e-05,2]
[325084964,1714512333176,-186.32922869,0.00018022,2]
[325084965,1714512333197,-75.54748473,0.00018023,2]
[325084969,1714512428182,-94.21040527,0.00018023,2]
[325084970,1714512428202,-106.77206512,0.0001804,2]
[325084971,1714512430106,-56.6134719,0.0001804,2]
[325084972,1714512430130,-185.54724105,0.00018074,2]
[325084973,1714512430153,-115.78131656,0.00018075,2]
[325084974,1714512434100,-1836.36286686,0.00018075,2]
[325084976,1714512546188,-527.05408836,0.00018074,2]
[325084977,1714512546209,-22947.85581658,0.00018075,2]
[325084978,1714512546230,-460.05432035,0.0001814,2]
[325084979,1714512546252,-989.732275,0.0001824,2]
[325084980,1714512546275,-576.256817,0.00018488,2]
[325084981,1714512546297,-250.0,0.00018531,2]
[325084982,1714512546320,-1236.2943737,0.00018612,2]
[325084983,1714512546343,-369.74029441,0.00018819,2]
[325084984,1714512546368,-160.567912,0.00019178,2]
[325084985,1714512546392,-160.3823676,0.00019178,2]
[325084986,1714512546417,-379.24165137,0.00019276,2]
[325084987,1714512546442,-526.3774914,0.00019276,2]
[325084988,1714512546463,-730.61014924,0.00019276,2]
[325084989,1714512546484,-154.89155735,0.00019276,2]
[325084990,1714512546504,-308.33975989,0.00019276,2]
[325084991,1714512546525,-245.48835711,0.00019277,2]
[325084992,1714512546546,-237.07141959,0.00019277,2]
[325084993,1714512546569,-185.73985076,0.0002,2]
[325084994,1714512546591,-866.22,0.00020904,3]
[325084995,1714512546615,-500.0,0.00020909,2]
[325084996,1714512546640,-500.0,0.00020909,2]
[325084997,1714512546665,-500.0,0.00020909,2]
[325084998,1714512546687,-500.0,0.00020909,2]
[325084999,1714512546709,-500.0,0.00020909,2]
[325085000,1714512546730,-500.0,0.00020909,2]
[325085001,1714512546756,-500.0,0.00020909,2]
[325085002,1714512546778,-500.0,0.00020909,2]
[325085003,1714512546798,-500.0,0.00020909,2]
[325085004,1714512546820,-500.0,0.00020909,2]
[325085005,1714512546840,-500.0,0.00020909,2]
[325085006,1714512546860,-500.0,0.00020909,2]
[325085007,1714512546881,-500.0,0.00020909,2]
[325085008,1714512546903,-400.0,0.00020909,2]
[325085009,1714512546926,-500.0,0.00020909,2]
[325085010,1714512546947,-500.0,0.00020909,2]
[325085011,1714512546967,-268.78148506,0.00020909,2]
[325085012,1714512547110,-500.0,0.00020909,2]
[325085013,1714512547135,-500.0,0.00020909,2]
[325085014,1714512547154,-494.5093743,0.00020909,2]
[325085015,1714512547175,-500.0,0.00020909,2]
[325085016,1714512547195,-500.0,0.00020909,2]
[325085017,1714512547215,-500.0,0.00020909,2]
[325085018,1714512547235,-500.0,0.00020909,2]
[325085019,1714512547254,-573.30214601,0.00020909,2]
[325085020,1714512547274,-250.0,0.00020909,2]
[325085021,1714512547294,-500.0,0.00020909,2]
[325085022,1714512547312,-500.0,0.00020909,2]
[325085023,1714512547332,-500.0,0.00020909,2]
[325085024,1714512547355,-500.0,0.00020909,2]
[325085025,1714512547373,-165.31168112,0.00020909,2]
[325085026,1714512547395,-467.58467062,0.0002091,2]
[325085027,1714512547418,-5311.31173986,0.0002091,2]
[325085028,1714512547440,-170.86156021,0.0002091,2]
[325085029,1714512547459,-474.97244981,0.0002091,2]
[325085030,1714512547479,-329.99389325,0.0002091,2]
[325085031,1714512547499,-514.30635662,0.0002091,2]
[325085032,1714512547517,-574.45001192,0.0002091,2]
[325085033,1714512547537,-1027.70801588,0.0002091,2]
[325085034,1714512547558,-158.77120453,0.0002091,2]
[325085035,1714512547577,-312.92952009,0.00020911,2]
[325085036,1714512547599,-157.31659292,0.00020911,2]
[325085037,1714512547619,-2048.54357802,0.00020912,2]
[325085038,1714512548167,-6002.48429183,0.00020912,2]
[325085039,1714512556178,-1326.98749725,0.00020912,2]
[325085040,1714512556198,-471.92546345,0.00020912,2]
[325085041,1714512556219,-1620.89516318,0.00020912,2]
[325085042,1714512556243,-211.61693391,0.00020912,2]
[325085043,1714512556262,-500.0,0.00020913,2]
[325085044,1714512556282,-247.26015407,0.00020913,2]
[325085045,1714512556302,-500.0,0.00020913,2]
[325085046,1714512556323,-500.0,0.00020913,2]
[325085047,1714512556342,-500.0,0.00020913,2]
[325085048,1714512556366,-393.75320246,0.00020913,2]
[325085049,1714512556387,-500.0,0.00020913,2]
[325085050,1714512556409,-2084.30400312,0.00020913,2]
[325085051,1714512556431,-5112.43235119,0.00020913,2]
[325085052,1714512556451,-1564.25196696,0.00020913,2]
[325085053,1714512556470,-160.0,0.00021125,2]
[325085054,1714512556489,-320.0,0.00021673,2]
[325085055,1714512556509,-166.666666,0.00021918,2]
[325085056,1714512556529,-10000.0,0.00021918,2]
[325085057,1714512556550,-2000.0,0.00022,2]
[325085058,1714512556570,-159.21978257,0.00022,2]
[325085059,1714512556590,-191.54103763,0.00022,2]
[325085060,1714512556610,-480.0,0.00022221,2]
[325085061,1714512556630,-166.666666,0.00022431,2]
[325085062,1714512556650,-256.865754,0.00022466,2]
[325085063,1714512556670,-308.29704128,0.00022769,2]
[325085064,1714512556690,-166.666666,0.00022944,2]
[325085065,1714512556710,-714.17223552,0.00023,2]
[325085066,1714512556730,-166.666666,0.00023456,2]
[325085067,1714512556750,-166.666666,0.00023969,2]
[325085068,1714512556771,-989.91268434,0.00024,2]
[325085069,1714512556790,-693.45686249,0.00024,2]
[325085070,1714512556809,-166.666666,0.00024482,2]
[325085071,1714512556829,-500.0,0.00024657,2]
[325085072,1714512556848,-500.0,0.00024657,2]
[325085073,1714512556868,-200.0,0.00024658,2]
[325085074,1714512556887,-380.0,0.00024658,2]
[325085075,1714512556907,-500.0,0.00024712,2]
[325085076,1714512556931,-500.0,0.00024767,2]
[325085077,1714512556951,-500.0,0.00024821,2]
[325085078,1714512556970,-163.385537,0.0002486,2]
[325085079,1714512556989,-500.0,0.00024876,2]
[325085080,1714512557008,-500.0,0.00024931,2]
[325085081,1714512557028,-500.0,0.00024986,2]
[325085082,1714512557047,-756.81853789,0.00025,2]
[325085083,1714512557067,-154.78330338,0.00025,2]
[325085084,1714512557086,-154.78330338,0.00025,2]
[325085085,1714512557105,-500.0,0.00025041,2]
[325085086,1714512557125,-500.0,0.00025095,2]
[325085087,1714512557144,-500.0,0.0002515,2]
[325085088,1714512557164,-500.0,0.00025205,2]
[325085089,1714512557185,-500.0,0.0002526,2]
[325085090,1714512557204,-500.0,0.00025315,2]
[325085091,1714512557223,-206.56888876,0.00025369,2]
[325085092,1714512557242,-209.82008119,0.00025786,3]
[325085093,1714512557261,-668.54834874,0.00025848,2]
[325085094,1714512557280,-5336.52325733,0.00027,2]
[325085095,1714512561089,-3192.68855792,0.00027,2]
[325085096,1714512561109,-622.42741744,0.00027141,2]
[325085097,1714512561130,-576.256817,0.00027731,2]
[325085098,1714512561150,-220.93587945,0.00028,2]
[325085099,1714512564101,-199.419334,0.00028493,2]
[325085100,1714512564122,-199.419334,0.00028493,120]
[325085101,1714512564141,-256.865754,0.00028493,2]
[325085102,1714512569901,154.78330338,0.00025,2]
[325085103,1714512570278,693.45686249,0.00024,2]
[325085104,1714512577029,756.81853789,0.00025,2]
[325085105,1714512582827,159.87111398,0.00025,2]
[325085106,1714512583245,247.55555469,0.0002,2]
[325085107,1714512583266,289.87458367,0.0002,2]
[325085108,1714512588765,1490.19451782,0.0002316,2]
[325085109,1714512588940,1490.19451782,0.0002816,2]
[325085110,1714512590745,154.78330338,0.00025,2]
[325085111,1714512594946,756.81853789,0.00025,2]
[325085112,1714512604344,814.32555754,0.00020913,2]
[325085114,1714512610498,159.21978257,0.00022,2]
[325085115,1714512614947,756.81853789,0.00025,2]
[325085116,1714512626412,159.21978257,0.00022,2]
[325085118,1714512630951,756.81853789,0.00025,2]
[325085157,1714512632209,-1086.3237768,0.000298,2]
[325085180,1714512632326,-73.28795852,0.000298,2]
[325085183,1714512632336,-501.09155308,0.000299,2]
[325085186,1714512632345,-501.09155308,0.000299,2]
[325085189,1714512632354,-501.09155308,0.000299,2]
[325085192,1714512632364,-452.33690989,0.000299,2]
[325085328,1714512638419,-48.75464319,0.000299,2]
[325085330,1714512638429,-1751.631749,0.0003,2]
[325085332,1714512638439,-304.0,0.00030095,3]
[325085334,1714512638448,-1121.66833623,0.00031,4]
[325085336,1714512638458,-201.10351273,0.0003157,2]
[325085338,1714512638467,-163.385537,0.0003168,2]
[325085340,1714512638476,-1174.58703018,0.0003168,2]
[325085342,1714512638487,-174.17804622,0.00031779,2]
[325085344,1714512638496,-383.03708677,0.00031779,2]
[325085346,1714512638506,-500.0,0.00031779,2]
[325085348,1714512638515,-600.0,0.00031779,2]
[325085350,1714512638524,-250.0,0.00031779,2]
[325085352,1714512638532,-285.92246067,0.00031779,2]
[325085354,1714512638541,-166.05659714,0.00031779,2]
[325085356,1714512638551,-196.53127612,0.00031779,2]
[325085357,1714512638560,-349.77929273,0.0003178,2]
[325085358,1714512638569,-500.0,0.0003178,2]
[325085359,1714512638578,-500.0,0.0003178,2]
[325085360,1714512638587,-500.0,0.0003178,2]
[325085361,1714512638596,-500.0,0.0003178,2]
[325085362,1714512638605,-500.0,0.0003178,2]
[325085363,1714512638614,-500.0,0.0003178,2]
[325085364,1714512638623,-500.0,0.0003178,2]
[325085365,1714512638631,-500.0,0.0003178,2]
[325085366,1714512638640,-500.0,0.0003178,2]
[325085367,1714512638649,-500.0,0.0003178,2]
[325085368,1714512638658,-604.83946406,0.0003178,2]
[325085369,1714512638666,-500.0,0.0003178,2]
[325085370,1714512638675,-500.0,0.0003178,2]
[325085371,1714512638684,-500.0,0.0003178,2]
[325085372,1714512638693,-500.0,0.0003178,2]
[325085373,1714512638702,-503.07929307,0.0003178,2]
[325085374,1714512638711,-628.8198716,0.0003178,2]
[325085375,1714512638720,-500.0,0.0003178,2]
[325085376,1714512638728,-500.0,0.0003178,2]
[325085377,1714512638738,-500.0,0.0003178,2]
[325085378,1714512638746,-500.0,0.0003178,2]
[325085379,1714512638755,-500.0,0.0003178,2]
[325085380,1714512638764,-500.0,0.0003178,2]
[325085381,1714512638773,-500.0,0.0003178,2]
[325085383,1714512638784,-500.0,0.0003178,2]
[325085385,1714512638793,-500.0,0.0003178,2]
[325085387,1714512638802,-500.0,0.0003178,2]
[325085389,1714512638811,-500.0,0.0003178,2]
[325085391,1714512638820,-500.0,0.0003178,2]
[325085393,1714512638829,-500.0,0.0003178,2]
[325085395,1714512638838,-500.0,0.0003178,2]
[325085398,1714512638847,-500.0,0.0003178,2]
[325085399,1714512638857,-500.0,0.0003178,2]
[325085401,1714512638866,-500.0,0.0003178,2]
[325085404,1714512638875,-500.0,0.0003178,2]
[325085405,1714512638884,-500.0,0.0003178,2]
[325085417,1714512638982,-281.54196155,0.0003178,2]
[325085419,1714512638994,-500.0,0.0003178,2]
[325085421,1714512639004,-500.0,0.0003178,2]
[325085423,1714512639013,-500.0,0.0003178,2]
[325085425,1714512639022,-500.0,0.0003178,2]
[325085427,1714512639031,-500.0,0.0003178,2]
[325085429,1714512639040,-500.0,0.0003178,2]
[325085431,1714512639050,-500.0,0.0003178,2]
[325085433,1714512639059,-500.0,0.0003178,2]
[325085435,1714512639068,-500.0,0.0003178,2]
[325085438,1714512639078,-500.0,0.0003178,2]
[325085440,1714512639088,-500.0,0.0003178,2]
[325085442,1714512639097,-500.0,0.0003178,2]
[325085444,1714512639106,-500.0,0.0003178,2]
[325085446,1714512639116,-500.0,0.0003178,2]
[325085448,1714512639125,-500.0,0.0003178,2]
[325085450,1714512639135,-500.0,0.0003178,2]
[325085452,1714512639144,-500.0,0.0003178,2]
[325085454,1714512639154,-263.0925182,0.0003178,2]
[325085456,1714512639163,-500.0,0.0003178,2]
[325085458,1714512639173,-500.0,0.0003178,2]
[325085460,1714512639182,-500.0,0.0003178,2]
[325085462,1714512639191,-500.0,0.0003178,2]
[325085464,1714512639200,-500.0,0.0003178,2]
[325085466,1714512639209,-500.0,0.0003178,2]
[325085468,1714512639219,-500.0,0.0003178,2]
[325085470,1714512639228,-500.0,0.0003178,2]
[325085472,1714512639237,-500.0,0.0003178,2]
[325085474,1714512639246,-500.0,0.0003178,2]
[325085476,1714512639255,-227.7699957,0.0003178,2]
[325085478,1714512639264,-500.0,0.0003178,2]
[325085480,1714512639274,-500.0,0.0003178,2]
[325085482,1714512639283,-500.0,0.0003178,2]
[325085484,1714512639293,-500.0,0.0003178,2]
[325085486,1714512639302,-500.0,0.0003178,2]
[325085488,1714512639311,-500.0,0.0003178,2]
[325085490,1714512639321,-500.0,0.0003178,2]
[325085492,1714512639330,-500.0,0.0003178,2]
[325085494,1714512639340,-500.0,0.0003178,2]
[325085495,1714512639349,-500.0,0.0003178,2]
[325085497,1714512639358,-500.0,0.0003178,2]
[325085499,1714512639368,-500.0,0.0003178,2]
[325085500,1714512639379,-500.0,0.0003178,2]
[325085501,1714512639392,-500.0,0.0003178,2]
[325085503,1714512639402,-500.0,0.0003178,2]
[325085505,1714512639411,-500.0,0.0003178,2]
[325085508,1714512639422,-500.0,0.0003178,2]
[325085510,1714512639431,-500.0,0.0003178,2]
[325085511,1714512639440,-500.0,0.0003178,2]
[325085513,1714512639449,-500.0,0.0003178,2]
[325085515,1714512639459,-500.28752524,0.0003178,2]
[325085517,1714512639470,-500.0,0.0003178,2]
[325085519,1714512639480,-500.0,0.0003178,2]
[325085520,1714512639490,-500.0,0.0003178,2]
[325085521,1714512639499,-500.0,0.0003178,2]
[325085522,1714512639509,-500.0,0.0003178,2]
[325085523,1714512639519,-500.0,0.0003178,2]
[325085524,1714512639529,-463.58366947,0.0003178,2]
[325085525,1714512639538,-500.0,0.0003178,2]
[325085526,1714512639547,-500.0,0.0003178,2]
[325085527,1714512639557,-500.0,0.0003178,2]
[325085528,1714512639567,-500.0,0.0003178,2]
[325085529,1714512639576,-500.0,0.0003178,2]
[325085530,1714512639585,-500.0,0.0003178,2]
[325085531,1714512639595,-500.0,0.0003178,2]
[325085533,1714512639604,-500.0,0.0003178,2]
[325085535,1714512639613,-500.0,0.0003178,2]
[325085537,1714512639623,-500.0,0.0003178,2]
[325085539,1714512639632,-500.0,0.0003178,2]
[325085541,1714512639642,-500.0,0.0003178,2]
[325085543,1714512639651,-500.0,0.0003178,2]
[325085545,1714512639660,-500.0,0.0003178,2]
[325085547,1714512639668,-500.0,0.0003178,2]
[325085549,1714512639677,-500.0,0.0003178,2]
[325085551,1714512639687,-500.0,0.0003178,2]
[325085553,1714512639696,-434.90633053,0.0003178,2]
[325085555,1714512639705,-500.0,0.0003178,2]
[325085557,1714512639714,-500.0,0.0003178,2]
[325085560,1714512639724,-500.0,0.0003178,2]
[325085562,1714512639734,-500.0,0.0003178,2]
[325085565,1714512639744,-500.0,0.0003178,2]
[325085567,1714512639753,-500.0,0.0003178,2]
[325085568,1714512639762,-500.0,0.0003178,2]
[325085570,1714512639771,-500.0,0.0003178,2]
[325085573,1714512639780,-500.0,0.0003178,2]
[325085574,1714512639791,-500.0,0.0003178,2]
[325085576,1714512639800,-500.0,0.0003178,2]
[325085578,1714512639809,-500.0,0.0003178,2]
[325085580,1714512639819,-500.0,0.0003178,2]
[325085582,1714512639828,-500.0,0.0003178,2]
[325085585,1714512639837,-500.0,0.0003178,2]
[325085587,1714512639846,-500.0,0.0003178,2]
[325085588,1714512639855,-500.95072127,0.0003178,2]
[325085590,1714512639865,-500.0,0.0003178,2]
[325085593,1714512639875,-500.0,0.0003178,2]
[325085595,1714512639884,-500.0,0.0003178,2]
[325085597,1714512639895,-500.0,0.0003178,2]
[325085599,1714512639905,-500.0,0.0003178,2]
[325085601,1714512639914,-500.0,0.0003178,2]
[325085603,1714512639923,-500.0,0.0003178,2]
[325085604,1714512639932,-265.62032147,0.0003178,2]
[325085607,1714512639942,-500.0,0.0003178,2]
[325085609,1714512639951,-500.0,0.0003178,2]
[325085611,1714512639960,-501.50716194,0.0003178,2]
[325085612,1714512639969,-500.0,0.0003178,2]
[325085614,1714512639978,-500.0,0.0003178,2]
[325085616,1714512639988,-500.0,0.0003178,2]
[325085618,1714512639997,-500.0,0.0003178,2]
[325085621,1714512640008,-500.0,0.0003178,2]
[325085623,1714512640017,-500.0,0.0003178,2]
[325085625,1714512640027,-500.0,0.0003178,2]
[325085627,1714512640036,-500.0,0.0003178,2]
[325085629,1714512640045,-500.0,0.0003178,2]
[325085631,1714512640054,-500.0,0.0003178,2]
[325085633,1714512640063,-577.61,0.0003178,2]
[325085635,1714512640072,-500.0,0.0003178,2]
[325085637,1714512640081,-500.0,0.0003178,2]
[325085639,1714512640090,-500.0,0.0003178,2]
[325085641,1714512640099,-501.12506878,0.0003178,2]
[325085643,1714512640108,-500.0,0.0003178,2]
[325085645,1714512640118,-500.0,0.0003178,2]
[325085647,1714512640127,-540.43527266,0.0003178,2]
[325085649,1714512640136,-500.30835537,0.0003178,2]
[325085651,1714512640145,-534.10498441,0.0003178,2]
[325085652,1714512640155,-500.0,0.0003178,2]
[325085654,1714512640164,-500.0,0.0003178,2]
[325085657,1714512640173,-500.0,0.0003178,2]
[325085658,1714512640182,-500.0,0.0003178,2]
[325085660,1714512640192,-500.0,0.0003178,2]
[325085662,1714512640201,-500.0,0.0003178,2]
[325085665,1714512640210,-500.0,0.0003178,2]
[325085666,1714512640220,-500.0,0.0003178,2]
[325085668,1714512640229,-500.0,0.0003178,2]
[325085670,1714512640239,-500.0,0.0003178,2]
[325085672,1714512640248,-500.0,0.0003178,2]
[325085674,1714512640257,-500.0,0.0003178,2]
[325085677,1714512640266,-500.0,0.0003178,2]
[325085678,1714512640275,-500.0,0.0003178,2]
[325085680,1714512640285,-500.0,0.0003178,2]
[325085682,1714512640294,-500.0,0.0003178,2]
[325085684,1714512640303,-500.0,0.0003178,2]
[325085687,1714512640312,-500.0,0.0003178,2]
[325085689,1714512640322,-502.00246879,0.0003178,2]
[325085691,1714512640331,-500.0,0.0003178,2]
[325085693,1714512640340,-500.0,0.0003178,30]
[325085695,1714512640349,-500.0,0.0003178,2]
[325085697,1714512640359,-500.0,0.0003178,2]
[325085699,1714512640369,-272.51632962,0.0003178,2]
[325085701,1714512640382,-1813.55,0.00031934,3]
[325085703,1714512640391,-2176.26,0.00031944,3]
[325085705,1714512640401,-44444.0,0.00031954,3]
[325085707,1714512640410,-5000.0,0.00032,4]
[325085709,1714512640420,-447.17087694,0.00032,4]
[325085711,1714512640429,-500.0,0.00032053,2]
[325085713,1714512640439,-500.0,0.00032054,2]
[325085715,1714512640448,-500.0,0.00032054,2]
[325085717,1714512640459,-500.0,0.00032054,2]
[325085719,1714512640469,-500.0,0.00032054,2]
[325085721,1714512640478,-500.0,0.00032054,2]
[325085723,1714512640489,-500.0,0.00032054,2]
[325085725,1714512640499,-500.0,0.00032054,2]
[325085727,1714512640508,-500.0,0.00032054,2]
[325085729,1714512640518,-500.0,0.00032054,2]
[325085731,1714512640527,-500.0,0.00032054,2]
[325085733,1714512640537,-500.0,0.00032054,2]
[325085735,1714512640547,-500.0,0.00032054,2]
[325085737,1714512640556,-347.97535903,0.00032054,2]
[325085739,1714512640565,-500.0,0.00032054,2]
[325085741,1714512640575,-500.0,0.00032054,2]
[325085743,1714512640584,-500.0,0.00032054,2]
[325085745,1714512640593,-500.0,0.00032054,2]
[325085746,1714512640602,-500.0,0.00032054,2]
[325085748,1714512640611,-500.0,0.00032054,2]
[325085751,1714512640621,-500.0,0.00032054,2]
[325085752,1714512640630,-500.0,0.00032054,2]
[325085754,1714512640640,-500.0,0.00032054,2]
[325085757,1714512640649,-500.0,0.00032054,2]
[325085759,1714512640659,-500.0,0.00032054,2]
[325085761,1714512640668,-500.0,0.00032054,2]
[325085763,1714512640678,-500.0,0.00032054,2]
[325085764,1714512640687,-500.0,0.00032054,2]
[325085767,1714512640697,-168.45715128,0.00032054,2]
[325085768,1714512640707,-500.0,0.00032054,2]
[325085770,1714512640716,-500.0,0.00032054,2]
[325085773,1714512640726,-500.0,0.00032054,2]
[325085774,1714512640735,-500.0,0.00032054,2]
[325085777,1714512640746,-500.0,0.00032054,2]
[325085778,1714512640756,-500.0,0.00032054,2]
[325085781,1714512640766,-500.0,0.00032054,2]
[325085782,1714512640776,-500.0,0.00032054,2]
[325085784,1714512640786,-151.29285404,0.00032054,2]
[325085786,1714512640795,-500.0,0.00032054,2]
[325085788,1714512640805,-500.0,0.00032054,2]
[325085790,1714512640815,-500.0,0.00032054,2]
[325085792,1714512640825,-500.0,0.00032054,2]
[325085794,1714512640834,-500.0,0.00032054,2]
[325085796,1714512640843,-500.0,0.00032054,2]
[325085798,1714512640851,-500.0,0.00032054,2]
[325085800,1714512640861,-500.0,0.00032054,2]
[325085802,1714512640870,-500.0,0.00032054,2]
[325085804,1714512640881,-500.0,0.00032054,2]
[325085806,1714512640890,-500.0,0.00032054,2]
[325085808,1714512640899,-500.0,0.00032054,2]
[325085810,1714512640909,-500.0,0.00032054,2]
[325085812,1714512640918,-500.0,0.00032054,2]
[325085814,1714512640928,-500.0,0.00032054,2]
[325085816,1714512640937,-500.0,0.00032054,2]
[325085818,1714512640946,-500.0,0.00032054,2]
[325085820,1714512640955,-550.70676162,0.00032054,2]
[325085822,1714512640965,-500.0,0.00032054,2]
[325085824,1714512640974,-500.0,0.00032054,2]
[325085826,1714512640983,-500.0,0.00032054,2]
[325085828,1714512640994,-500.0,0.00032054,2]
[325085830,1714512641003,-500.0,0.00032054,2]
[325085832,1714512641012,-500.0,0.00032054,2]
[325085834,1714512641022,-500.0,0.00032054,2]
[325085836,1714512641031,-500.0,0.00032054,2]
[325085838,1714512641040,-500.0,0.00032054,2]
[325085840,1714512641049,-500.0,0.00032054,2]
[325085842,1714512641058,-500.0,0.00032054,2]
[325085844,1714512641067,-180.5690511,0.00032054,2]
[325085846,1714512641077,-500.0,0.00032054,2]
[325085848,1714512641085,-500.0,0.00032054,2]
[325085850,1714512641095,-500.0,0.00032054,2]
[325085852,1714512641104,-500.0,0.00032054,2]
[325085854,1714512641113,-500.0,0.00032054,2]
[325085856,1714512641122,-500.0,0.00032054,2]
[325085858,1714512641130,-500.0,0.00032054,2]
[325085860,1714512641140,-500.0,0.00032054,2]
[325085862,1714512641149,-500.0,0.00032054,2]
[325085864,1714512641158,-500.0,0.00032054,2]
[325085866,1714512641167,-500.0,0.00032054,2]
[325085868,1714512641176,-500.0,0.00032054,2]
[325085870,1714512641185,-500.0,0.00032054,2]
[325085872,1714512641194,-500.0,0.00032054,2]
[325085874,1714512641203,-500.0,0.00032054,2]
[325085876,1714512641213,-500.0,0.00032054,2]
[325085878,1714512641222,-500.0,0.00032054,2]
[325085880,1714512641232,-500.0,0.00032054,2]
[325085882,1714512641241,-500.0,0.00032054,2]
[325085884,1714512641250,-500.0,0.00032054,2]
[325085886,1714512641259,-500.0,0.00032054,2]
[325085888,1714512641268,-500.0,0.00032054,2]
[325085890,1714512641278,-500.0,0.00032054,2]
[325085893,1714512641287,-500.0,0.00032054,2]
[325085894,1714512641296,-500.0,0.00032054,2]
[325085896,1714512641305,-500.0,0.00032054,2]
[325085898,1714512641314,-500.0,0.00032054,2]
[325085900,1714512641323,-500.0,0.00032054,2]
[325085902,1714512641332,-500.0,0.00032054,2]
[325085904,1714512641342,-500.0,0.00032054,2]
[325085906,1714512641350,-500.0,0.00032054,2]
[325085908,1714512641360,-500.0,0.00032054,2]
[325085910,1714512641369,-500.0,0.00032054,2]
[325085913,1714512641379,-500.0,0.00032054,2]
[325085915,1714512641393,-500.0,0.00032054,2]
[325085916,1714512641402,-500.0,0.00032054,2]